Cogmind - Beta 15 @@@ ROGUE MODE // 2025.06.22 @ 09:59:49 // AFD2020/Player2 Player: Demo Result: Destroyed by as-27813 with Assembled Blade Performance ------------- Evolutions (0) 0 Regions Visited (2) 400 Robots Destroyed (30) 150 Value Destroyed (454) 454 Prototype IDs (2) 40 Alien Tech Used (0) 0 Bonus (38) 38 TOTAL SCORE: 1082 Bonus ------- Follower Combat Kills 77 Friendly Fire -39 Cogmind --------- Core Integrity 0/250 Matter 300/300 Energy 100/100 System Corruption 0% Temperature Cool (0) Movement Core (50) Location -10/Mines Parts ------- > --- POWER (1) -------- (None) > --- PROPULSION (2) --- (None) > --- UTILITY (2) ------ Seismic Detector > --- WEAPON (2) ------- (None) > --- INVENTORY (5) ---- Wheel High-capacity Matter Pod (200) Machine Analyzer Transport Network Coupler Hacking Suite Peak State ------------ > --- POWER ------------ Ion Engine > --- PROPULSION ------- Light Treads Wheel > --- UTILITY ---------- High-capacity Storage Unit Seismic Detector > --- WEAPON ----------- Medium Laser Light Assault Rifle > --- INVENTORY -------- Wheel Wheel Wheel Wheel Wheel Compact Wheel Hover Unit Large Storage Unit Weight Redist. System Structural Scanner Machine Analyzer Transport Network Coupler Hacking Suite EM Pulse Gun Datajack [Rating: 9] Favorites ----------- Power Ion Engine Engine Ion Engine Propulsion Wheel Treads Light Treads Wheel Wheel Utility Seismic Detector Device Seismic Detector Storage High-capacity Storage Unit Weapon Medium Laser Energy Gun Medium Laser Ballistic Gun Light Assault Rifle Build | -11 -10 -10 ------- Run | Yrd Mat Min Slots Evolved . | . . . Power . | . . . Propulsion . | . . . Utility . | . . . Weapon . | . . . Parts Attached 12 | 7 3 2 Power 1 | 1 . . Engine 1 | 1 . . Core . | . . . Reactor . | . . . Propulsion 4 | 2 1 1 Treads 1 | 1 . . Leg . | . . . Wheel 3 | 1 1 1 Hover . | . . . Flight . | . . . Utility 4 | 2 2 . Device 1 | 1 . . Storage 3 | 1 2 . Processor . | . . . Hackware . | . . . Protection . | . . . Artifact . | . . . Weapon 3 | 2 . 1 Energy Gun 2 | 1 . 1 Energy Cannon . | . . . Ballistic Gun 1 | 1 . . Ballistic Cannon . | . . . Launcher . | . . . Special Weapon . | . . . Impact Weapon . | . . . Slashing Weapon . | . . . Piercing Weapon . | . . . Special Melee Weapon . | . . . Unidentified Prototypes . | . . . Parts Lost 6 | . . 6 Power 1 | . . 1 Propulsion 2 | . . 2 Utility . | . . . Weapon 3 | . . 3 Highest Loss Streak 5 | . . 5 To Critical Strikes . | . . . Average Backups 14 | 4 13 20 Power . | . . 1 Propulsion 7 | 3 7 8 Utility 5 | . 4 9 Weapon . | . . 1 Tool/Special . | . . . Unused Backups 25 | 3 3 19 Power 1 | . . 1 Propulsion 13 | 3 2 8 Utility 8 | . . 8 Weapon 2 | . 1 1 Tool/Special 1 | . . 1 Average Slot Usage (%) 99 | . 100 99 Engine 14 | . 14 14 Treads 13 | . 13 14 Wheel 14 | . 14 14 Device 14 | . 14 14 Storage 14 | . 14 14 Energy Gun 17 | . 14 24 Ballistic Gun 10 | . 14 3 Peak Build Rating 9 | 7 9 9 Average Rating 8 | 5 8 8 On Entrance 5 | . 7 9 Naked Turns . | . . . Heaviest Build 50 | 14 49 50 Greatest Support 20 | 10 20 10 Greatest Overweight (x) 4 | 1 4 4 Average Overweight (x) 2 | . 2 4 Largest Inventory Capacity 20 | 8 20 20 Average Capacity 17 | 5 17 20 Most Carried 20 | 8 20 20 Average Carried 14 | 4 13 20 Final Capacity 20 | 8 20 5 Final Carried 20 | 8 20 5 Class Distribution -------------------- 100% | Mutant Dominant Class ---------------- Mutant | -10/Materials Mutant | -10/Mines Resources | -11 -10 -10 ----------- Run | Yrd Mat Min Matter Collected 600 | 285 157 158 Remotely . | . . . Salvage Created 981 | 198 603 180 Parts 61 | 17 28 16 Haulers Intercepted 1 | . 1 . Recyclers Shooed 2 | . 1 1 Parts Field Recycled . | . . . Retrieved Matter . | . . . Parts Self-Destructed . | . . . Prevented . | . . . Kills | -11 -10 -10 ------- Run | Yrd Mat Min Combat Hostiles Destroyed 11 | . 9 2 Guns 11 | . 9 2 Classes Destroyed 9 | 3 6 . Worker 3 | 1 . 2 Tunneler 7 | 5 . 2 Hauler 1 | . 1 . Recycler 4 | 1 2 1 Mechanic 1 | . 1 . Operator 1 | . 1 . Watcher 2 | . 2 . Swarmer 3 | . 2 1 Grunt 8 | . 7 1 Best Kill Streak 4 | 4 4 2 Combat Bots Only 2 | . 2 1 Max Kills in Single Turn 1 | 1 1 1 Gunslinging . | . . . Exploded . | . . . Melee . | . . . Uniques/NPCs Destroyed . | . . . Combat | -11 -10 -10 -------- Run | Yrd Mat Min Hostile Shots Fired 67 | . 40 27 Missed 14 | . 9 5 Hits 53 | . 31 22 Melee 3 | . . 3 Projectile 50 | . 31 19 Damage Taken 670 | . 322 348 Core 136 | . 57 79 Absorbed by Shields . | . . . Core Remaining (%) 100 | 100 . . Volleys Fired 79 | 15 49 15 Largest 2 | 2 2 2 Hottest 100 | 70 70 100 Shots Fired 157 | 30 98 29 Gun 157 | 30 98 29 Cannon . | . . . Launcher . | . . . Special . | . . . Kinetic 72 | 15 49 8 Thermal 85 | 15 49 21 Explosive . | . . . Electromagnetic . | . . . Robot Hit Streak 10 | 7 10 8 Robot Miss Streak 5 | 3 5 2 Penetration Max . | . . . Secondary Targets 1 | . 1 . Max Gunslinging Chain 1 | . 1 . Shots Hit Robots 99 | 16 61 22 Core Hits 46 | 8 26 12 Critical Kills 1 | . 1 . Critical Parts Destroyed . | . . . Critical Strikes 6 | 1 5 . Burn 5 | 1 4 . Destroy 1 | . 1 . Melee Attacks . | . . . Impact . | . . . Slashing . | . . . Piercing . | . . . Sneak Attacks . | . . . Combat Hostiles . | . . . Follow-up Attacks . | . . . Damage Inflicted 1100 | 182 661 257 Guns 1100 | 182 661 257 Cannons . | . . . Explosions . | . . . Melee . | . . . Ramming . | . . . Kinetic 319 | 31 222 66 Thermal 781 | 151 439 191 Explosive . | . . . Electromagnetic . | . . . Impact . | . . . Slashing . | . . . Piercing . | . . . Highest Corruption . | . . . Average Corruption . | . . . Corruption Purged . | . . . Corruption Blocked . | . . . Overload Shots . | . . . Overflow Damage . | . . . Projectiles . | . . . Explosions . | . . . Melee . | . . . Knockbacks . | . . . Impact . | . . . Kinetic . | . . . Secondary . | . . . Self-Inflicted Damage . | . . . Shots . | . . . Rammed . | . . . Targets Rammed . | . . . Kicked . | . . . Crushed . | . . . Highest Temperature 79 | 40 54 79 Average Temperature 20 | 19 19 24 Received Heat Transfer 174 | . 60 114 Siege Activations . | . . . Martial Activations . | . . . Shielding Activations . | . . . Robots Disrupted . | . . . Combat Hostiles . | . . . Robots Corrupted . | . . . Combat Hostiles . | . . . Parts Fried . | . . . Impact Corruptions . | . . . Robots Melted . | . . . Combat Hostiles . | . . . Parts Melted 2 | 1 1 . Heat Transferred 2636 | 518 1563 555 Parts Sabotaged . | . . . Parts Stolen . | . . . Parts Stripped . | . . . Power Chain Reactions . | . . . Alert | -11 -10 -10 ------- Run | Yrd Mat Min Maximum Alert Level 1 | . 1 . Low Security (%) 84 | 100 75 100 Level 1 15 | . 24 . Level 2 . | . . . Level 3 . | . . . Level 4 . | . . . Level 5 . | . . . High Security . | . . . Max Security . | . . . Peak Influence 254 | 10 254 139 Initial 50 | . . 50 Average 90 | 1 117 58 Influence Increases 697 | 35 483 179 Destroy 0b10 Robot/C 360 | . 260 100 Destroy 0b10 Robot/NC 105 | 35 45 25 Destroy Leader 70 | . 50 20 Allied During Kill 116 | . 82 34 Successful Hack 30 | . 30 . Destroy Structure 1 | . 1 . Lose Combat Pursuer 15 | . 15 . Influence Decreases 697 | 35 353 309 Entered New Map 80 | . . 80 Time Decay 607 | 35 353 219 Lost Part 10 | . . 10 Squads Dispatched 1 | . 1 . Investigation . | . . . Extermination . | . . . Reinforcement 1 | . 1 . Assault . | . . . Garrison . | . . . Intercept . | . . . Searches Triggered . | . . . Construction Impeded . | . . . Haulers Reinforced . | . . . Active Scanning Responses . | . . . Cargo Convoy Interrupts . | . . . Stealth | -11 -10 -10 --------- Run | Yrd Mat Min Distress Signals 2 | . 2 . Communications Jammed . | . . . Distress Signals . | . . . Times Spotted 35 | . 22 13 Peak Tracking Total 12 | . 4 12 Tactical Retreats 1 | . 1 . Traps | -11 -10 -10 ------- Run | Yrd Mat Min Traps Triggered 1 | . 1 . Indirectly . | . . . Trap Hack Attempts . | . . . Triggered . | . . . Disarmed . | . . . Reprogrammed . | . . . Reused . | . . . Traps Extracted . | . . . Installed . | . . . Triggered . | . . . Machines | -11 -10 -10 ---------- Run | Yrd Mat Min Machines Disabled . | . . . Max in Single Turn . | . . . Machines Repaired . | . . . Machines Dismantled . | . . . Machines Sabotaged . | . . . Overloaded Fab Kills . | . . . Hacking | -11 -10 -10 --------- Run | Yrd Mat Min Machines Accessed 6 | . 6 . Terminals 6 | . 6 . Fabricators . | . . . Repair Stations . | . . . Recycling Units . | . . . Scanalyzers . | . . . Garrison Access . | . . . Total Hacks 21 | . 21 . Successful 12 | . 12 . Failed 9 | . 9 . Catastrophic . | . . . Database Lockouts . | . . . Manual 18 | . 18 . Terminals 21 | . 21 . Fabricators . | . . . Repair Stations . | . . . Recycling Units . | . . . Scanalyzers . | . . . Garrison Access . | . . . Terminal Hacks 4 | . 4 . Robot Analysis 1 | . 1 . Prototype ID Bank 1 | . 1 . Branch Access Points 1 | . 1 . Emergency Access Points 1 | . 1 . Fabricator Hacks . | . . . Repair Station Hacks . | . . . Recycling Unit Hacks . | . . . Scanalyzer . | . . . Garrison Access Hacks . | . . . Unauthorized Hacks 8 | . 8 . Terminals 8 | . 8 . Track 1 | . 1 . Assimilate 3 | . 3 . Botnet 3 | . 3 . Operators 1 | . 1 . Fabricators . | . . . Repair Stations . | . . . Recycling Units . | . . . Scanalyzers . | . . . Garrison Access . | . . . Data Cores Recovered . | . . . Used . | . . . Hacking Detections 6 | . 6 . Full Trace Events 1 | . 1 . Feedback Events . | . . . Feedback Blocked . | . . . Robot Schematics Acquired . | . . . Robots Built . | . . . Authchips . | . . . Time . | . . . Total Robot Build Rating . | . . . Part Schematics Acquired . | . . . Parts Built . | . . . Authchips . | . . . Time . | . . . Total Part Build Rating . | . . . Parts Repaired . | . . . Time . | . . . Parts Recycled . | . . . Recycled Matter . | . . . Retrieved Matter . | . . . Retrieved Components . | . . . Parts Scanalyzed . | . . . Part Schematics Acquired . | . . . Parts Damaged . | . . . Bothacking | -11 -10 -10 ------------ Run | Yrd Mat Min Used RIF Installer . | . . . Robots Hacked . | . . . Non-combat . | . . . Combat . | . . . Robot Hacks Applied . | . . . Relay Couplers Released . | . . . Fabnet Peak Effective % . | . . . Robots Rewired . | . . . Allies Hacked . | . . . Hacks Repelled . | . . . Allies | -11 -10 -10 -------- Run | Yrd Mat Min Total Allies 2 | . 2 . Largest Group 2 | . 2 2 Highest-Rated Group 69 | . 67 69 Highest-Rated Ally 59 | . 57 59 Total Orders . | . . . Ally Attacks 46 | . 34 12 Total Damage 532 | . 404 128 Kills 9 | . 6 3 Allies Corrupted . | . . . Allies Melted . | . . . Intel | -11 -10 -10 ------- Run | Yrd Mat Min Active Infowar (turns) 1617 | . 1108 509 Seismic 1617 | . 1108 509 Robot Analysis Total 1 | . 1 . Derelict Logs Recovered 1 | . . 1 Drone Launches . | . . . Drone Recoveries . | . . . Exploration | -11 -10 -10 ------------- Run | Yrd Mat Min Turns Passed 1775 | 158 1108 509 Spaces Moved 1171 | 113 730 328 Core 4 | 4 . . Treads . | . . . Legs . | . . . Wheels 1167 | 109 730 328 Hover . | . . . Flight . | . . . Fastest Speed 50 | 50 95 140 Average Speed 124 | 82 124 140 Slowest Speed 140 | 95 140 140 Overloaded Moves . | . . . Propulsion Burnouts . | . . . Robots Hopped . | . . . Potential Cave-ins . | . . . Cave-ins Triggered . | . . . Exploration Rate (%) 52 | 4 89 65 Regions Visited 2 Branch Regions 1 Pre-discovered Areas 1 | . . 1 Known Exits Taken 1 | . 1 . Unknown Exits Taken 1 | 1 . . Scrap Searched 1 | . . 1 Spaces Dug . | . . . Terrain Destroyed . | . . . Melee . | . . . Projectile . | . . . AOE . | . . . Terrain Rammed . | . . . Walls Destroyed . | . . . Machines Disabled . | . . . Actions | -11 -10 -10 --------- Run | Yrd Mat Min Total 1342 | 148 843 351 Wait 43 | . 41 2 Move 1169 | 112 729 328 Hop . | . . . Pick Up 27 | 11 15 1 Fast Attach 8 | 7 . 1 Attach 1 | . 1 . Detach . | . . . Swap 4 | . 3 1 Drop 11 | 3 5 3 Fire 79 | 15 49 15 Melee . | . . . Ram . | . . . Kick . | . . . Crush . | . . . Escape Stasis . | . . . Rewire . | . . . Trap . | . . . Miscellaneous . | . . . Route ------- -11/Scrapyard -10/Materials (discovered 3 exits: [*Mat x2] / *Min) -10/Mines (discovered 1 exit: [*Mat]) History --------- Turn | Location | Event 7 | -11/Scrapyard | Discovered new exit (range 15) 159 | -11/Scrapyard | Entered Materials 331 | -10/Materials | Build established: Mutant 437 | -10/Materials | Discovered new exit (range 3) 613 | -10/Materials | Discovered new exit (range 13) 940 | -10/Materials | Identified exit to Mines 994 | -10/Materials | Discovered new exit (range 5) 1267 | -10/Materials | Entered Mines 1267 | -10/Mines | Accompanied by 1 ally 1379 | -10/Mines | Core integrity fell below 50% 1524 | -10/Mines | Learned location of Storage (-9) 1620 | -10/Mines | Learned 4 Materials zone layouts 1635 | -10/Mines | Discovered new exit (range 6) 1734 | -10/Mines | Assembled infested the area 1774 | -10/Mines | Core integrity fell below 20% 1776 | -10/Mines | Destroyed by as-27813 with Assembled Blade Last Messages --------------- 01598_ K-01 Serf collects debris. 01620_ Acquired derelict log, extracted data. Data stored: Materials zone layouts (x4). 01635_ EXIT=FOUND 01656_ K-01 Serf destroyed. 01658_ K-01 Serf collects debris. Player 2: "This Lgt. Assault Rifle is kinda cool." 01734_ ALERT: Infestation in the mines, dispatching Demolisher response squad. Player 2: "Quick, hide!" 01768_ Med. Laser destroyed. 01771_ as-27813 sneak attacks. 01771_ Technician 1a destroyed. 01773_ Dropped Hover Unit. 01773_ Acquired Hacking Suite. 01774_ Lgt. Treads destroyed. 01775_ Wheel destroyed. 01776_ Dropped Hcp. Storage Unit. 01776_ Ion Engine destroyed. Map ----- +----------------------------------------------------+ | | | | | | | | | | | | | | | | | | | | | | | ?????????????????????????????????????????????????? | | ?????????????????????????????????????????????????? | | ?????????????????????????????????????????????????? | | ????????????????????????????????##???????????????? | | ???????????????????????????????? ###?????????????? | | ???????????????????????????????? #?????????????? | | ???????????????????????????????? ??????????????? | | ???????????????????????????????% ???????????????? | | ??????????????????????????????? %#???????????????? | | ??????????????????????????????? #???????????????? | | ???????????????????????######## #???????????????? | | ??????????????????????## aaa!######??????????? | | ??????????????????????#!!!=a a |%* $ ???? | | ?????????????????????##==a=%###########??????????? | | ????????????????######!*!@/##????????????????????? | | ???????????????## !=[##?????????????????????? | | ???????????????# =/=##?####????????????????? | | ???????????????# ### ##???????????????? | | ???????????????# """ #???????????????? | | ???????????????## """ #??#####????????? | | ????????????????## """ #?## ##???????? | | ?????????????????## ### ##??????? | | ??????????????????## ## ######?? | | ???????????????????#####??# # ## ### | | ???????????????????????????## ## ### # | | ???????????????????????????# ## #?## | | ??????????????????????????# ### #?## | | ?????????????????????????# ##?# #?# # | | ????????????????????????# ##??# < ## #### | | ???????????????????????# #????###### ### #??? | | ??????????????????????# #??????????####?# #??? | | ????????????????????? #????????????##### #??? | | ???????????????????? ##?????????????# #??? | | ???????????????????? #???????????????# =#??? | | ????????????????????? ??????????????### ##%##??? | | ?????????????????????????????????????# ##!##### | | #########????????????????????????????# #### # | | # ## ##???????????????????????????# #??##### # | | #???????????????????????????# #??????# # | +----------------------------------------------------+ Best States ------------- Heat Dissipation 25 Energy Generation 5 Energy Capacity 250 Matter Stores 300 Matter Capacity 300 Sight Range 16 Terrain Scan Density 10 Evasion (%) 44 Recoil Reduction 1 Item Schematics ----------------- None Robot Schematics ------------------ None Fabricated ------------ Nothing Repaired ---------- Nothing Alien Tech Used ----------------- None Achievements -------------- None Challenges ------------ None Player 2 | -11 -10 -10 ---------- Run | Yrd Mat Min Slots Evolved . | . . . Power . | . . . Propulsion . | . . . Utility . | . . . Weapon . | . . . Parts Attached 16 | . 11 5 Parts Lost 3 | . . 3 Damage Taken 649 | . 216 433 Core 136 | . 27 109 Player 2/Cogmind (%) 50 | . 32 57 Absorbed by Shields . | . . . Damage Inflicted 532 | . 404 128 Player 2/Cogmind (%) 32 | . 37 33 Combat Hostiles Destroyed 7 | . 4 3 Player 2/Cogmind (%) 38 | . 30 60 Game ------ Seed GaussPlexusLog Manual? 0 Play Time 00:10:59 Cumulative 290.6 hours Start 2025.06.22 @ 09:51:20 End 2025.06.22 @ 09:59:49 Sessions 1 Manual Loads 0 Difficulty Rogue Special Mode AFD2020/Player2 Game No. 260 Rogue 260 Adventurer 0 Explorer 0 Win Type - Total 2 Types 1/1/0/0/0/0/0/0/0/0 Lore% 76 Gallery% 80 Achievement% 72 Wizard Run 0 Options --------- Layout 1 ASCII 0 Keyboard 0 Movement Numpad Keybinds 0 Fullscreen 1 Font 24/Smallcaps Map View 50x35 Zoom Use 0% Tactical HUD 1 Map Filters NONE Filters NONE Steam 1 RUN: 0f3678f2-d75a-4882-848f-b36e89f20d08